[Event "Titled Tuesday Blitz March 28 Early 2023"]
[White "mjelcic"]
[Black "Abdilkhair, Abilmansur"]
[BlackFideId "13716417"]
[WhiteElo "2251"]
[BlackElo "2216"]
[Result "1-0"]
[Round "10"]
[TimeControl "180+2"]
[Date "2023.03.28"]
[WhiteClock "0:00:35"]
[BlackClock "0:01:29"]

1. e4 {[%clk 0:02:59]}  e5 {[%clk 0:02:17]} 2. Nf3 {[%clk 0:00:44]}  Nc6 {[%clk 0:02:18]} 3. d4 {[%clk 0:00:44]}  exd4 {[%clk 0:02:17]} 4. Bc4 {[%clk 0:00:45]}  Nf6 {[%clk 0:02:15]} 5. e5 {[%clk 0:00:45]}  d5 {[%clk 0:02:15]} 6. Bb5 {[%clk 0:00:45]}  Ne4 {[%clk 0:02:13]} 7. Nxd4 {[%clk 0:00:46]}  Bd7 {[%clk 0:02:12]} 8. Bxc6 {[%clk 0:00:47]}  bxc6 {[%clk 0:02:13]} 9. O-O {[%clk 0:00:47]}  Bc5 {[%clk 0:02:10]} 10. f3 {[%clk 0:00:47]}  Ng5 {[%clk 0:02:09]} 11. f4 {[%clk 0:00:48]}  Ne4 {[%clk 0:02:10]} 12. Be3 {[%clk 0:00:48]}  O-O {[%clk 0:02:09]} 13. Nd2 {[%clk 0:00:48]}  Nxd2 {[%clk 0:02:06]} 14. Qxd2 {[%clk 0:00:49]}  Bb6 {[%clk 0:02:06]} 15. Nb3 {[%clk 0:00:49]}  Bf5 {[%clk 0:02:04]} 16. Qc3 {[%clk 0:00:49]}  Qh4 {[%clk 0:01:47]} 17. Bc5 {[%clk 0:00:46]}  Rfe8 {[%clk 0:01:43]} 18. Nd4 {[%clk 0:00:44]}  Bd3 {[%clk 0:01:38]} 19. cxd3 {[%clk 0:00:37]}  f6 {[%clk 0:01:29]} 20. Rae1 {[%clk 0:00:35]} 1-0


[Site "https://www.chess.com"]

[Event "Titled Tuesday Blitz March 28 Early 2023"]
[White "Reprintsev, Alexander"]
[Black "Zavortink, Matt"]
[WhiteFideId "14100541"]
[BlackFideId "2034263"]
[WhiteElo "2229"]
[BlackElo "2322"]
[Result "1-0"]
[Round "10"]
[TimeControl "180+2"]
[Date "2023.03.28"]
[WhiteClock "0:00:07"]
[BlackClock "0:00:02"]

1. e4 {[%clk 0:02:49]}  e6 {[%clk 0:02:59]} 2. d4 {[%clk 0:02:48]}  d5 {[%clk 0:03:00]} 3. Nc3 {[%clk 0:02:48]}  Nf6 {[%clk 0:02:59]} 4. Bg5 {[%clk 0:02:47]}  Be7 {[%clk 0:02:59]} 5. e5 {[%clk 0:02:46]}  Nfd7 {[%clk 0:02:58]} 6. h4 {[%clk 0:02:46]}  c5 {[%clk 0:02:56]} 7. Bxe7 {[%clk 0:02:43]}  Kxe7 {[%clk 0:02:57]} 8. dxc5 {[%clk 0:02:35]}  Nxe5 {[%clk 0:02:53]} 9. Qe2 {[%clk 0:02:32]}  Nbc6 {[%clk 0:02:50]} 10. O-O-O {[%clk 0:02:32]}  Kf8 {[%clk 0:02:33]} 11. h5 {[%clk 0:02:16]}  h6 {[%clk 0:02:26]} 12. g4 {[%clk 0:02:11]}  Qa5 {[%clk 0:02:22]} 13. f4 {[%clk 0:02:08]}  Nd7 {[%clk 0:01:51]} 14. g5 {[%clk 0:02:01]}  Nxc5 {[%clk 0:01:44]} 15. Nf3 {[%clk 0:01:57]}  Bd7 {[%clk 0:01:31]} 16. Bh3 {[%clk 0:01:51]}  b5 {[%clk 0:01:20]} 17. Ne5 {[%clk 0:00:58]}  b4 {[%clk 0:01:04]} 18. Nxd7+ {[%clk 0:00:55]}  Nxd7 {[%clk 0:01:04]} 19. Nxd5 {[%clk 0:00:52]}  Qxa2 {[%clk 0:00:58]} 20. Qb5 {[%clk 0:00:44]}  Rc8 {[%clk 0:00:38]} 21. Nxb4 {[%clk 0:00:38]}  Qa1+ {[%clk 0:00:31]} 22. Kd2 {[%clk 0:00:37]}  Qxb2 {[%clk 0:00:32]} 23. Rb1 {[%clk 0:00:33]}  Qd4+ {[%clk 0:00:31]} 24. Nd3 {[%clk 0:00:32]}  hxg5 {[%clk 0:00:25]} 25. Bg2 {[%clk 0:00:20]}  Ndb8 {[%clk 0:00:16]} 26. fxg5 {[%clk 0:00:19]}  Qg4 {[%clk 0:00:14]} 27. Qc5+ {[%clk 0:00:19]}  Kg8 {[%clk 0:00:14]} 28. Qf2 {[%clk 0:00:19]}  Qxg5+ {[%clk 0:00:14]} 29. Kd1 {[%clk 0:00:19]}  Rxh5 {[%clk 0:00:13]} 30. Rg1 {[%clk 0:00:19]}  Qg4+ {[%clk 0:00:12]} 31. Bf3 {[%clk 0:00:19]}  Qf5 {[%clk 0:00:11]} 32. Qg2 {[%clk 0:00:19]}  Rh7 {[%clk 0:00:10]} 33. Be4 {[%clk 0:00:18]}  Qh5+ {[%clk 0:00:09]} 34. Kc1 {[%clk 0:00:18]}  g6 {[%clk 0:00:09]} 35. Rb7 {[%clk 0:00:17]}  Ne5 {[%clk 0:00:08]} 36. Nf4 {[%clk 0:00:15]}  Qh6 {[%clk 0:00:07]} 37. Rf1 {[%clk 0:00:14]}  Nbc6 {[%clk 0:00:06]} 38. Kb1 {[%clk 0:00:13]}  Nd4 {[%clk 0:00:06]} 39. Nxg6 {[%clk 0:00:11]}  Nxg6 {[%clk 0:00:06]} 40. Rg1 {[%clk 0:00:10]}  Rg7 {[%clk 0:00:05]} 41. Qf2 {[%clk 0:00:10]}  Nxc2 {[%clk 0:00:05]} 42. Bxc2 {[%clk 0:00:10]}  Qf4 {[%clk 0:00:04]} 43. Qg2 {[%clk 0:00:07]}  Qd4 {[%clk 0:00:02]} 44. Rb3 {[%clk 0:00:07]}  Rc3 {[%clk 0:00:01]} 45. Rb8+ {[%clk 0:00:06]}  Kh7 {[%clk 0:00:02]} 46. Rh1+ {[%clk 0:00:07]} 1-0


[Site "https://www.chess.com"]

[Event "Titled Tuesday Blitz March 28 Early 2023"]
[White "Van Osch, Mees"]
[Black "Shubenkova, Veronika"]
[WhiteFideId "1035967"]
[BlackFideId "44124040"]
[WhiteElo "2324"]
[BlackElo "2027"]
[Result "0-1"]
[Round "10"]
[TimeControl "180+2"]
[Date "2023.03.28"]
[WhiteClock "0:00:08"]
[BlackClock "0:00:25"]

1. e4 {[%clk 0:02:48]}  e6 {[%clk 0:02:59]} 2. d4 {[%clk 0:02:46]}  d5 {[%clk 0:02:59]} 3. Nc3 {[%clk 0:02:47]}  Nf6 {[%clk 0:03:00]} 4. e5 {[%clk 0:02:47]}  Nfd7 {[%clk 0:03:00]} 5. Nf3 {[%clk 0:02:47]}  c5 {[%clk 0:03:00]} 6. Be3 {[%clk 0:02:46]}  cxd4 {[%clk 0:03:00]} 7. Qxd4 {[%clk 0:02:44]}  Nc6 {[%clk 0:03:00]} 8. Qf4 {[%clk 0:02:43]}  Be7 {[%clk 0:03:00]} 9. O-O-O {[%clk 0:02:43]}  a6 {[%clk 0:02:59]} 10. Bd3 {[%clk 0:02:43]}  b5 {[%clk 0:02:57]} 11. h4 {[%clk 0:02:43]}  h6 {[%clk 0:02:54]} 12. Kb1 {[%clk 0:02:43]}  Bb7 {[%clk 0:02:54]} 13. Ne2 {[%clk 0:02:41]}  Qa5 {[%clk 0:02:53]} 14. Ned4 {[%clk 0:02:40]}  Nb4 {[%clk 0:02:51]} 15. a3 {[%clk 0:02:36]}  Nxd3 {[%clk 0:02:50]} 16. cxd3 {[%clk 0:02:33]}  Rf8 {[%clk 0:02:45]} 17. Nb3 {[%clk 0:02:26]}  Qa4 {[%clk 0:02:41]} 18. Qxa4 {[%clk 0:02:23]}  bxa4 {[%clk 0:02:42]} 19. Na5 {[%clk 0:02:24]}  Bc8 {[%clk 0:02:31]} 20. Rc1 {[%clk 0:02:24]}  Bd8 {[%clk 0:02:28]} 21. Nc6 {[%clk 0:02:20]}  Bb6 {[%clk 0:02:28]} 22. Bxb6 {[%clk 0:02:15]}  Nxb6 {[%clk 0:02:27]} 23. Nfd4 {[%clk 0:01:53]}  Bd7 {[%clk 0:02:26]} 24. Rc5 {[%clk 0:01:47]}  f6 {[%clk 0:02:17]} 25. f3 {[%clk 0:01:40]}  Rc8 {[%clk 0:02:09]} 26. Re1 {[%clk 0:01:39]}  Bxc6 {[%clk 0:02:03]} 27. Rxc6 {[%clk 0:01:16]}  Rxc6 {[%clk 0:02:01]} 28. Nxc6 {[%clk 0:01:17]}  Kd7 {[%clk 0:01:57]} 29. Nd4 {[%clk 0:01:14]}  fxe5 {[%clk 0:01:45]} 30. Rxe5 {[%clk 0:01:15]}  Rf6 {[%clk 0:01:45]} 31. Re2 {[%clk 0:01:07]}  Kd6 {[%clk 0:01:44]} 32. Rc2 {[%clk 0:00:49]}  Ke5 {[%clk 0:01:32]} 33. Ne2 {[%clk 0:00:44]}  Kd6 {[%clk 0:01:08]} 34. f4 {[%clk 0:00:44]}  e5 {[%clk 0:01:06]} 35. fxe5+ {[%clk 0:00:40]}  Kxe5 {[%clk 0:01:07]} 36. Rc7 {[%clk 0:00:37]}  g5 {[%clk 0:01:05]} 37. hxg5 {[%clk 0:00:32]}  hxg5 {[%clk 0:01:06]} 38. Rg7 {[%clk 0:00:31]}  Kf5 {[%clk 0:01:04]} 39. Nd4+ {[%clk 0:00:29]}  Kf4 {[%clk 0:01:00]} 40. Kc2 {[%clk 0:00:25]}  Nc8 {[%clk 0:00:54]} 41. Ne2+ {[%clk 0:00:19]}  Ke3 {[%clk 0:00:52]} 42. Nc3 {[%clk 0:00:19]}  Rc6 {[%clk 0:00:49]} 43. Kd1 {[%clk 0:00:14]}  d4 {[%clk 0:00:46]} 44. Nxa4 {[%clk 0:00:11]}  Kxd3 {[%clk 0:00:44]} 45. Rxg5 {[%clk 0:00:11]}  Rh6 {[%clk 0:00:43]} 46. Nc5+ {[%clk 0:00:11]}  Kc4 {[%clk 0:00:36]} 47. b4 {[%clk 0:00:11]}  Nd6 {[%clk 0:00:29]} 48. Ke2 {[%clk 0:00:09]}  Nb5 {[%clk 0:00:27]} 49. Nd3 {[%clk 0:00:07]}  Nc3+ {[%clk 0:00:26]} 50. Kd2 {[%clk 0:00:06]}  Ne4+ {[%clk 0:00:26]} 51. Ke2 {[%clk 0:00:07]}  Nxg5 {[%clk 0:00:27]} 52. Ne5+ {[%clk 0:00:08]}  Kd5 {[%clk 0:00:26]} 53. Ng4 {[%clk 0:00:09]}  Re6+ {[%clk 0:00:26]} 54. Kf2 {[%clk 0:00:08]}  d3 {[%clk 0:00:25]} 0-1


[Site "https://www.chess.com"]

[Event "Titled Tuesday Blitz March 28 Early 2023"]
[White "BenchGM"]
[Black "Khamdamova, Afruza"]
[BlackFideId "14210444"]
[WhiteElo "2364"]
[BlackElo "2210"]
[Result "0-1"]
[Round "10"]
[TimeControl "180+2"]
[Date "2023.03.28"]
[WhiteClock "0:00:08"]
[BlackClock "0:00:18"]

1. d4 {[%clk 0:03:00]}  Nf6 {[%clk 0:02:59]} 2. Bg5 {[%clk 0:03:00]}  d5 {[%clk 0:02:58]} 3. e3 {[%clk 0:02:59]}  Ne4 {[%clk 0:02:56]} 4. Bf4 {[%clk 0:02:58]}  e6 {[%clk 0:02:57]} 5. Nd2 {[%clk 0:02:57]}  Bd6 {[%clk 0:02:55]} 6. Nxe4 {[%clk 0:02:46]}  Bxf4 {[%clk 0:02:43]} 7. exf4 {[%clk 0:02:38]}  dxe4 {[%clk 0:02:43]} 8. c3 {[%clk 0:02:35]}  O-O {[%clk 0:02:43]} 9. f3 {[%clk 0:02:18]}  Qd5 {[%clk 0:02:09]} 10. Qc2 {[%clk 0:02:10]}  f5 {[%clk 0:02:02]} 11. fxe4 {[%clk 0:01:40]}  fxe4 {[%clk 0:02:02]} 12. Ne2 {[%clk 0:01:35]}  Nd7 {[%clk 0:01:51]} 13. g3 {[%clk 0:01:20]}  e3 {[%clk 0:01:48]} 14. Rg1 {[%clk 0:01:14]}  Qf3 {[%clk 0:01:45]} 15. O-O-O {[%clk 0:01:09]}  Nf6 {[%clk 0:01:36]} 16. Bg2 {[%clk 0:01:04]}  Qh5 {[%clk 0:01:36]} 17. h3 {[%clk 0:00:56]}  Qa5 {[%clk 0:01:32]} 18. Kb1 {[%clk 0:00:55]}  c6 {[%clk 0:01:31]} 19. g4 {[%clk 0:00:53]}  Nd5 {[%clk 0:01:30]} 20. Be4 {[%clk 0:00:43]}  Nf6 {[%clk 0:01:13]} 21. Bd3 {[%clk 0:00:40]}  h6 {[%clk 0:00:58]} 22. g5 {[%clk 0:00:35]}  hxg5 {[%clk 0:00:57]} 23. fxg5 {[%clk 0:00:36]}  Nh5 {[%clk 0:00:53]} 24. Bh7+ {[%clk 0:00:34]}  Kh8 {[%clk 0:00:52]} 25. Qg6 {[%clk 0:00:33]}  Qf5+ {[%clk 0:00:33]} 26. Qxf5 {[%clk 0:00:33]}  exf5 {[%clk 0:00:33]} 27. Bg6 {[%clk 0:00:32]}  f4 {[%clk 0:00:30]} 28. Bxh5 {[%clk 0:00:31]}  f3 {[%clk 0:00:31]} 29. Nc1 {[%clk 0:00:18]}  Bf5+ {[%clk 0:00:24]} 30. Ka1 {[%clk 0:00:17]}  Bc2 {[%clk 0:00:24]} 31. Rdf1 {[%clk 0:00:16]}  Be4 {[%clk 0:00:20]} 32. Rg4 {[%clk 0:00:10]}  e2 {[%clk 0:00:19]} 33. Nxe2 {[%clk 0:00:09]}  fxe2 {[%clk 0:00:19]} 34. Re1 {[%clk 0:00:09]}  Bf3 {[%clk 0:00:18]} 35. Rgg1 {[%clk 0:00:08]}  Bxh5 {[%clk 0:00:18]} 0-1


[Site "https://www.chess.com"]

[Event "Titled Tuesday Blitz March 28 Early 2023"]
[White "Gatterer, Florian"]
[Black "Alahakoon, Isuru"]
[WhiteFideId "811688"]
[BlackFideId "9900993"]
[WhiteElo "2221"]
[BlackElo "1995"]
[Result "0-1"]
[Round "10"]
[TimeControl "180+2"]
[Date "2023.03.28"]
[WhiteClock "0:00:38"]
[BlackClock "0:01:04"]

1. e4 {[%clk 0:03:00]}  d5 {[%clk 0:02:58]} 2. exd5 {[%clk 0:03:00]}  Nf6 {[%clk 0:02:58]} 3. Nf3 {[%clk 0:02:57]}  Qxd5 {[%clk 0:02:57]} 4. Be2 {[%clk 0:02:55]}  e5 {[%clk 0:02:56]} 5. Nc3 {[%clk 0:02:53]}  Qa5 {[%clk 0:02:55]} 6. a3 {[%clk 0:02:52]}  Nc6 {[%clk 0:02:56]} 7. d3 {[%clk 0:02:50]}  Bg4 {[%clk 0:02:55]} 8. h3 {[%clk 0:02:45]}  Bh5 {[%clk 0:02:54]} 9. g4 {[%clk 0:02:44]}  Bg6 {[%clk 0:02:53]} 10. Bd2 {[%clk 0:02:45]}  O-O-O {[%clk 0:02:52]} 11. Ne4 {[%clk 0:02:41]}  Qd5 {[%clk 0:02:52]} 12. Nxf6 {[%clk 0:02:34]}  gxf6 {[%clk 0:02:52]} 13. O-O {[%clk 0:02:21]}  e4 {[%clk 0:02:52]} 14. c4 {[%clk 0:01:55]}  Qd7 {[%clk 0:02:44]} 15. dxe4 {[%clk 0:01:49]}  Bxe4 {[%clk 0:02:42]} 16. Be3 {[%clk 0:01:50]}  Qe6 {[%clk 0:02:30]} 17. Qa4 {[%clk 0:01:46]}  h5 {[%clk 0:02:30]} 18. Nd4 {[%clk 0:01:30]}  Nxd4 {[%clk 0:02:09]} 19. Bxd4 {[%clk 0:01:29]}  Rxd4 {[%clk 0:02:10]} 20. Qxa7 {[%clk 0:01:28]}  b6 {[%clk 0:02:10]} 21. c5 {[%clk 0:01:07]}  Bxc5 {[%clk 0:02:01]} 22. Ba6+ {[%clk 0:01:04]}  Kd7 {[%clk 0:01:58]} 23. Rad1 {[%clk 0:01:03]}  Qd6 {[%clk 0:01:19]} 24. Bb5+ {[%clk 0:00:49]}  Ke7 {[%clk 0:01:18]} 25. Rxd4 {[%clk 0:00:46]}  Bxd4 {[%clk 0:01:17]} 26. Re1 {[%clk 0:00:42]}  f5 {[%clk 0:01:16]} 27. Bd3 {[%clk 0:00:38]}  Qg3+ {[%clk 0:01:04]} 0-1


[Site "https://www.chess.com"]

[Event "Titled Tuesday Blitz March 28 Early 2023"]
[White "sebastianmarinp"]
[Black "Saya, Ethan"]
[BlackFideId "26095181"]
[WhiteElo "2307"]
[BlackElo "2150"]
[Result "0-1"]
[Round "10"]
[TimeControl "180+2"]
[Date "2023.03.28"]
[WhiteClock "0:00:32"]
[BlackClock "0:00:16"]

1. e4 {[%clk 0:03:00]}  e5 {[%clk 0:02:56]} 2. Nf3 {[%clk 0:03:00]}  Nc6 {[%clk 0:02:56]} 3. Bb5 {[%clk 0:03:00]}  Nf6 {[%clk 0:02:56]} 4. O-O {[%clk 0:02:57]}  Nxe4 {[%clk 0:02:51]} 5. d4 {[%clk 0:02:55]}  Nd6 {[%clk 0:02:49]} 6. Bxc6 {[%clk 0:02:51]}  dxc6 {[%clk 0:02:50]} 7. dxe5 {[%clk 0:02:51]}  Nf5 {[%clk 0:02:50]} 8. Qxd8+ {[%clk 0:02:51]}  Kxd8 {[%clk 0:02:51]} 9. Nc3 {[%clk 0:02:51]}  Ke8 {[%clk 0:02:46]} 10. Bf4 {[%clk 0:02:46]}  Be7 {[%clk 0:02:41]} 11. Rad1 {[%clk 0:02:42]}  Nh4 {[%clk 0:02:37]} 12. Nd4 {[%clk 0:02:15]}  Nf5 {[%clk 0:02:24]} 13. e6 {[%clk 0:02:11]}  Nxd4 {[%clk 0:02:15]} 14. exf7+ {[%clk 0:02:11]}  Kxf7 {[%clk 0:02:16]} 15. Rxd4 {[%clk 0:02:11]}  Bf6 {[%clk 0:02:08]} 16. Rd3 {[%clk 0:02:07]}  Bf5 {[%clk 0:02:08]} 17. Rf3 {[%clk 0:02:06]}  Bxc2 {[%clk 0:02:05]} 18. Bxc7 {[%clk 0:01:57]}  Rhe8 {[%clk 0:02:01]} 19. Rc1 {[%clk 0:01:48]}  Bg6 {[%clk 0:01:56]} 20. h3 {[%clk 0:01:45]}  Rac8 {[%clk 0:01:53]} 21. Bf4 {[%clk 0:01:44]}  Kg8 {[%clk 0:01:48]} 22. Re3 {[%clk 0:01:35]}  Bd4 {[%clk 0:01:43]} 23. Ree1 {[%clk 0:01:29]}  a5 {[%clk 0:01:17]} 24. Rcd1 {[%clk 0:01:22]}  Rxe1+ {[%clk 0:01:14]} 25. Rxe1 {[%clk 0:01:23]}  Re8 {[%clk 0:01:11]} 26. Rxe8+ {[%clk 0:01:13]}  Bxe8 {[%clk 0:01:11]} 27. Be3 {[%clk 0:01:08]}  Bf6 {[%clk 0:01:03]} 28. Bb6 {[%clk 0:01:08]}  Kf7 {[%clk 0:00:40]} 29. Na4 {[%clk 0:00:59]}  Ke6 {[%clk 0:00:38]} 30. b3 {[%clk 0:00:53]}  Kd5 {[%clk 0:00:35]} 31. Bxa5 {[%clk 0:00:46]}  c5 {[%clk 0:00:29]} 32. Bc3 {[%clk 0:00:42]}  Bxa4 {[%clk 0:00:16]} 33. Bxf6 {[%clk 0:00:42]}  gxf6 {[%clk 0:00:17]} 34. bxa4 {[%clk 0:00:41]}  Kd4 {[%clk 0:00:17]} 35. Kf1 {[%clk 0:00:37]}  Kd3 {[%clk 0:00:18]} 36. Ke1 {[%clk 0:00:37]}  Kc2 {[%clk 0:00:17]} 37. g4 {[%clk 0:00:33]}  c4 {[%clk 0:00:17]} 38. f4 {[%clk 0:00:31]}  c3 {[%clk 0:00:17]} 39. g5 {[%clk 0:00:32]}  Kb2 {[%clk 0:00:14]} 40. gxf6 {[%clk 0:00:31]}  c2 {[%clk 0:00:15]} 41. f7 {[%clk 0:00:31]}  c1=Q+ {[%clk 0:00:15]} 42. Kf2 {[%clk 0:00:32]}  Qc8 {[%clk 0:00:16]} 0-1


[Site "https://www.chess.com"]

[Event "Titled Tuesday Blitz March 28 Early 2023"]
[White "monkins"]
[Black "Gonzalez, Francisco Silva"]
[BlackFideId "1512285"]
[WhiteElo "2278"]
[BlackElo "2074"]
[Result "0-1"]
[Round "10"]
[TimeControl "180+2"]
[Date "2023.03.28"]
[WhiteClock "0:00:03"]
[BlackClock "0:01:00"]

1. Nf3 {[%clk 0:03:00]}  d5 {[%clk 0:02:17]} 2. g3 {[%clk 0:03:00]}  g6 {[%clk 0:02:14]} 3. Bg2 {[%clk 0:03:00]}  Bg7 {[%clk 0:02:15]} 4. O-O {[%clk 0:03:00]}  e5 {[%clk 0:02:15]} 5. d3 {[%clk 0:03:01]}  Ne7 {[%clk 0:02:15]} 6. c4 {[%clk 0:03:01]}  c6 {[%clk 0:02:15]} 7. Nbd2 {[%clk 0:03:00]}  O-O {[%clk 0:02:14]} 8. Rb1 {[%clk 0:03:00]}  a5 {[%clk 0:02:14]} 9. a3 {[%clk 0:03:00]}  h6 {[%clk 0:02:12]} 10. b4 {[%clk 0:02:59]}  axb4 {[%clk 0:02:10]} 11. axb4 {[%clk 0:03:00]}  Be6 {[%clk 0:02:09]} 12. b5 {[%clk 0:03:00]}  Nd7 {[%clk 0:02:09]} 13. Qc2 {[%clk 0:02:55]}  Re8 {[%clk 0:02:05]} 14. bxc6 {[%clk 0:02:47]}  bxc6 {[%clk 0:02:04]} 15. Bb2 {[%clk 0:02:47]}  Ra2 {[%clk 0:02:02]} 16. Ra1 {[%clk 0:02:45]}  Ra8 {[%clk 0:02:01]} 17. cxd5 {[%clk 0:02:03]}  cxd5 {[%clk 0:02:00]} 18. Rxa8 {[%clk 0:02:03]}  Qxa8 {[%clk 0:01:59]} 19. Ra1 {[%clk 0:02:01]}  Qb7 {[%clk 0:01:58]} 20. h3 {[%clk 0:01:47]}  Rc8 {[%clk 0:01:55]} 21. Qb1 {[%clk 0:01:44]}  Rb8 {[%clk 0:01:53]} 22. Ba3 {[%clk 0:01:39]}  Qxb1+ {[%clk 0:01:52]} 23. Rxb1 {[%clk 0:01:39]}  Rxb1+ {[%clk 0:01:51]} 24. Nxb1 {[%clk 0:01:40]}  Nc6 {[%clk 0:01:47]} 25. Nbd2 {[%clk 0:01:26]}  Bf8 {[%clk 0:01:46]} 26. Bxf8 {[%clk 0:01:23]}  Kxf8 {[%clk 0:01:46]} 27. e3 {[%clk 0:01:16]}  Ke7 {[%clk 0:01:46]} 28. d4 {[%clk 0:01:16]}  e4 {[%clk 0:01:45]} 29. Ne1 {[%clk 0:01:13]}  f5 {[%clk 0:01:44]} 30. f3 {[%clk 0:01:12]}  Nb6 {[%clk 0:01:43]} 31. fxe4 {[%clk 0:01:07]}  fxe4 {[%clk 0:01:43]} 32. Kf2 {[%clk 0:01:06]}  Na5 {[%clk 0:01:40]} 33. Bf1 {[%clk 0:00:58]}  Kd6 {[%clk 0:01:33]} 34. h4 {[%clk 0:00:56]}  Bg4 {[%clk 0:01:29]} 35. Ng2 {[%clk 0:00:54]}  g5 {[%clk 0:01:27]} 36. Be2 {[%clk 0:00:39]}  Bxe2 {[%clk 0:01:21]} 37. Kxe2 {[%clk 0:00:40]}  Nac4 {[%clk 0:01:21]} 38. Nb3 {[%clk 0:00:37]}  Nd7 {[%clk 0:01:20]} 39. Nd2 {[%clk 0:00:29]}  Nb2 {[%clk 0:01:17]} 40. Nf1 {[%clk 0:00:23]}  Ke6 {[%clk 0:01:15]} 41. Nh2 {[%clk 0:00:19]}  Kf5 {[%clk 0:01:15]} 42. g4+ {[%clk 0:00:18]}  Kf6 {[%clk 0:01:13]} 43. h5 {[%clk 0:00:16]}  Ke6 {[%clk 0:01:11]} 44. Nf1 {[%clk 0:00:16]}  Nc4 {[%clk 0:01:09]} 45. Ng3 {[%clk 0:00:16]}  Nf6 {[%clk 0:01:08]} 46. Nf5 {[%clk 0:00:09]}  Nxg4 {[%clk 0:01:08]} 47. Ng7+ {[%clk 0:00:07]}  Kf6 {[%clk 0:01:08]} 48. Ne8+ {[%clk 0:00:07]}  Ke7 {[%clk 0:01:05]} 49. Nc7 {[%clk 0:00:07]}  Kd6 {[%clk 0:01:03]} 50. Ne8+ {[%clk 0:00:07]}  Kc6 {[%clk 0:01:03]} 51. Ne1 {[%clk 0:00:05]}  Ncxe3 {[%clk 0:01:02]} 52. Nf6 {[%clk 0:00:03]}  Nxf6 {[%clk 0:00:59]} 53. Kxe3 {[%clk 0:00:03]}  Nxh5 {[%clk 0:01:00]} 0-1


[Site "https://www.chess.com"]

[Event "Titled Tuesday Blitz March 28 Early 2023"]
[White "Tagliata"]
[Black "Mazurkiewicz, Michal"]
[BlackFideId "1124943"]
[WhiteElo "2228"]
[BlackElo "2054"]
[Result "0-1"]
[Round "10"]
[TimeControl "180+2"]
[Date "2023.03.28"]
[WhiteClock "0:00:47"]
[BlackClock "0:00:57"]

1. e4 {[%clk 0:02:53]}  d6 {[%clk 0:02:59]} 2. d4 {[%clk 0:02:49]}  Nf6 {[%clk 0:03:00]} 3. Nc3 {[%clk 0:02:49]}  c6 {[%clk 0:03:00]} 4. f3 {[%clk 0:02:46]}  e5 {[%clk 0:02:59]} 5. Be3 {[%clk 0:02:45]}  Be7 {[%clk 0:02:59]} 6. Qd2 {[%clk 0:02:45]}  O-O {[%clk 0:02:59]} 7. O-O-O {[%clk 0:02:45]}  b5 {[%clk 0:03:00]} 8. g4 {[%clk 0:02:42]}  Nfd7 {[%clk 0:03:00]} 9. dxe5 {[%clk 0:02:39]}  dxe5 {[%clk 0:03:00]} 10. Nce2 {[%clk 0:02:32]}  Qc7 {[%clk 0:02:58]} 11. Ng3 {[%clk 0:02:32]}  Bc5 {[%clk 0:02:28]} 12. Nf5 {[%clk 0:02:24]}  a5 {[%clk 0:02:20]} 13. Nh3 {[%clk 0:02:04]}  Qb6 {[%clk 0:02:11]} 14. Bxc5 {[%clk 0:02:01]}  Nxc5 {[%clk 0:02:12]} 15. Qg5 {[%clk 0:01:36]}  Ne6 {[%clk 0:02:11]} 16. Qe3 {[%clk 0:01:28]}  Qxe3+ {[%clk 0:02:09]} 17. Nxe3 {[%clk 0:01:29]}  Nd4 {[%clk 0:02:08]} 18. Bg2 {[%clk 0:01:25]}  b4 {[%clk 0:02:06]} 19. Nf5 {[%clk 0:01:20]}  Bxf5 {[%clk 0:02:05]} 20. exf5 {[%clk 0:01:20]}  Na6 {[%clk 0:01:35]} 21. Kb1 {[%clk 0:01:15]}  Nc5 {[%clk 0:01:26]} 22. f4 {[%clk 0:01:14]}  f6 {[%clk 0:01:25]} 23. fxe5 {[%clk 0:01:12]}  fxe5 {[%clk 0:01:25]} 24. Rhe1 {[%clk 0:01:13]}  Rae8 {[%clk 0:01:12]} 25. Re3 {[%clk 0:01:10]}  h5 {[%clk 0:01:02]} 26. gxh5 {[%clk 0:00:56]}  Rxf5 {[%clk 0:00:59]} 27. c3 {[%clk 0:00:48]}  bxc3 {[%clk 0:01:00]} 28. bxc3 {[%clk 0:00:48]}  Rb8+ {[%clk 0:00:57]} 29. Ka1 {[%clk 0:00:47]}  Nc2# {[%clk 0:00:57]} 0-1


[Site "https://www.chess.com"]

[Event "Titled Tuesday Blitz March 28 Early 2023"]
[White "Tarasova, Viktoriya"]
[Black "hsd2016"]
[WhiteFideId "4175840"]
[WhiteElo "2182"]
[BlackElo "2005"]
[Result "1-0"]
[Round "10"]
[TimeControl "180+2"]
[Date "2023.03.28"]
[WhiteClock "0:01:15"]
[BlackClock "0:01:03"]

1. d4 {[%clk 0:03:00]}  Nf6 {[%clk 0:02:59]} 2. c4 {[%clk 0:02:59]}  c5 {[%clk 0:02:59]} 3. d5 {[%clk 0:02:59]}  b5 {[%clk 0:02:59]} 4. cxb5 {[%clk 0:02:59]}  a6 {[%clk 0:03:00]} 5. bxa6 {[%clk 0:02:59]}  e6 {[%clk 0:03:01]} 6. Nc3 {[%clk 0:02:54]}  exd5 {[%clk 0:03:01]} 7. Nxd5 {[%clk 0:02:54]}  Be7 {[%clk 0:03:02]} 8. Nf3 {[%clk 0:02:52]}  Bxa6 {[%clk 0:03:01]} 9. Bf4 {[%clk 0:02:42]}  Nxd5 {[%clk 0:02:59]} 10. Qxd5 {[%clk 0:02:42]}  Nc6 {[%clk 0:03:00]} 11. e4 {[%clk 0:02:38]}  Bxf1 {[%clk 0:02:57]} 12. Kxf1 {[%clk 0:02:38]}  O-O {[%clk 0:02:50]} 13. g3 {[%clk 0:02:35]}  Qb6 {[%clk 0:02:45]} 14. Kg2 {[%clk 0:02:35]}  Qxb2 {[%clk 0:02:40]} 15. Qxd7 {[%clk 0:02:33]}  Rac8 {[%clk 0:02:35]} 16. Qd2 {[%clk 0:02:15]}  Qb7 {[%clk 0:02:26]} 17. Rab1 {[%clk 0:02:14]}  Qa8 {[%clk 0:02:25]} 18. Qe3 {[%clk 0:02:10]}  Rfd8 {[%clk 0:02:23]} 19. Qb3 {[%clk 0:01:58]}  Nd4 {[%clk 0:02:13]} 20. Nxd4 {[%clk 0:01:58]}  cxd4 {[%clk 0:02:13]} 21. Qd3 {[%clk 0:01:49]}  Qxa2 {[%clk 0:02:09]} 22. Rb7 {[%clk 0:01:48]}  Rc3 {[%clk 0:01:59]} 23. Qb5 {[%clk 0:01:38]}  Bf6 {[%clk 0:01:49]} 24. e5 {[%clk 0:01:35]}  Rc2 {[%clk 0:01:43]} 25. Rf1 {[%clk 0:01:33]}  Qa8 {[%clk 0:01:16]} 26. exf6 {[%clk 0:01:27]}  d3 {[%clk 0:01:04]} 27. Kg1 {[%clk 0:01:17]}  d2 {[%clk 0:01:03]} 28. Qg5 {[%clk 0:01:15]} 1-0


[Site "https://www.chess.com"]